fUSD/lending_fUSD_20241202
["ID","MTS","AMOUNT","RATE_DAILY","PERIOD"]
[343994867,1733173290161,-2943875.28360379,0.0001,2]
[343994868,1733173290184,-3313094.75918353,0.0001,2]
[343994869,1733173290206,-79236.01373399,0.0001,2]
[343994870,1733173290228,-171691.15539143,0.0001,2]
[343994871,1733173290250,-39000.690624,0.0001,2]
[343994872,1733173290272,-213.36435808,0.0001,2]
[343994873,1733173290295,-1000.0,0.0001,2]
[343994874,1733173290319,-1000.0,0.0001,2]
[343994875,1733173290348,-1000.0,0.0001,2]
[343994876,1733173290372,-1000.0,0.0001,2]
[343994877,1733173290396,-1000.0,0.0001,2]
[343994878,1733173290419,-1000.0,0.0001,2]
[343994879,1733173290442,-1000.0,0.0001,2]
[343994880,1733173290466,-1000.0,0.0001,2]
[343994881,1733173290771,-183543.95800251,0.0001,2]
[343994882,1733173290796,-1000.0,0.0001,2]
[343994883,1733173290819,-22599.28194288,0.0001,2]
[343994884,1733173290844,-501672.3938587,0.0001,2]
[343994885,1733173290867,-1000.0,0.0001,2]
[343994886,1733173290891,-1000.0,0.0001,2]
[343994887,1733173290913,-1000.0,0.0001,2]
[343994888,1733173290936,-1000.0,0.0001,2]
[343994889,1733173290959,-1000.0,0.0001,2]
[343994890,1733173290981,-1000.0,0.0001,2]
[343994891,1733173291003,-1000.0,0.0001,2]
[343994892,1733173291027,-1000.0,0.0001,2]
[343994893,1733173291048,-1000.0,0.0001,2]
[343994894,1733173291073,-1000.0,0.0001,2]
[343994895,1733173291095,-1000.0,0.0001,2]
[343994896,1733173291118,-1000.0,0.0001,2]
[343994897,1733173291141,-1000.0,0.0001,2]
[343994898,1733173291166,-1000.0,0.0001,2]
[343994899,1733173291190,-1000.0,0.0001,2]
[343994900,1733173291214,-1000.0,0.0001,2]
[343994901,1733173291237,-1000.0,0.0001,2]
[343994902,1733173291260,-1000.0,0.0001,2]
[343994903,1733173291284,-1000.0,0.0001,2]
[343994904,1733173291309,-1000.0,0.0001,2]
[343994905,1733173291338,-1000.0,0.0001,2]
[343994906,1733173291362,-1000.0,0.0001,2]
[343994907,1733173291386,-1000.0,0.0001,2]
[343994908,1733173291411,-1000.0,0.0001,2]
[343994909,1733173291435,-1000.0,0.0001,2]
[343994910,1733173291459,-1000.0,0.0001,2]
[343994911,1733173291483,-1000.0,0.0001,2]
[343994912,1733173291506,-1000.0,0.0001,2]
[343994913,1733173291529,-1000.0,0.0001,2]
[343994914,1733173291552,-1000.0,0.0001,2]
[343994915,1733173291580,-1000.0,0.0001,2]
[343994916,1733173291604,-1000.0,0.0001,2]
[343994917,1733173291628,-1000.0,0.0001,2]
[343994918,1733173291651,-1000.0,0.0001,2]
[343994919,1733173291674,-1000.0,0.0001,2]
[343994920,1733173291698,-1148.43098898,0.0001,2]
[343994921,1733173291724,-1144151.80654488,0.0001,2]
[343994922,1733173291747,-211868.58641047,0.0001,2]
[343994923,1733173291770,-1038.3520722,0.0001,2]
[343994924,1733173291797,-1777300.82977385,0.0001,2]
[343994925,1733173291821,-735.0,0.0001,2]
[343994926,1733173291851,-1253094.3391918,0.0001,2]
[343994944,1733173831551,-645.2902,7.6e-05,2]
[343994945,1733173831561,-1004.63171034,7.677e-05,2]
[343994946,1733173831570,-1004.63171034,7.677e-05,2]
[343994947,1733173831580,-1004.63171034,7.679e-05,2]
[343994948,1733173831590,-1060.64229162,7.688e-05,2]
[343994949,1733173831600,-200.0,7.689e-05,2]
[343994950,1733173831610,-1060.64229162,7.693e-05,2]
[343994951,1733173831621,-1060.64229162,7.693e-05,2]
[343994952,1733173831631,-1060.64229162,7.694e-05,2]
[343994953,1733173831641,-1060.64229162,7.694e-05,2]
[343994954,1733173831651,-1060.64229162,7.697e-05,2]
[343994955,1733173831660,-1004.63171034,7.697e-05,2]
[343994956,1733173831670,-1004.63171034,7.698e-05,2]
[343994957,1733173831679,-1004.63171034,7.698e-05,2]
[343994958,1733173831688,-787.68,7.699e-05,2]
[343994959,1733173831698,-560.654585,7.7e-05,2]
[343994960,1733173831708,-2547.11,7.7e-05,2]
[343994961,1733173831718,-787.68,7.836e-05,2]
[343994962,1733173831728,-787.68,7.973e-05,2]
[343994963,1733173831738,-5800.0,7.983e-05,2]
[343994964,1733173831749,-150.0,7.989e-05,2]
[343994965,1733173831759,-159.726,7.99e-05,2]
[343994966,1733173831768,-6043.055,7.99e-05,2]
[343994967,1733173831778,-1166.0,7.99e-05,2]
[343994968,1733173831792,-13704.0,7.99e-05,2]
[343994969,1733173831801,-1097.0,7.99e-05,2]
[343994970,1733173831811,-5800.0,7.992e-05,2]
[343994971,1733173831821,-7699.25655602,8e-05,2]
[343994972,1733173831831,-5800.0,8e-05,2]
[343994973,1733173831845,-150.0,8e-05,2]
[343994974,1733173831855,-150.0,8e-05,2]
[343994975,1733173831864,-4606.09781527,8e-05,2]
[343994976,1733173831874,-550.03016183,8e-05,2]
[343994977,1733173831886,-787.68,8.11e-05,2]
[343994978,1733173831895,-36595.10599,8.178e-05,2]
[343994980,1733173831905,-500.0,8.219e-05,2]
[343994982,1733173831916,-500.0,8.219e-05,2]
[343994984,1733173831926,-500.0,8.219e-05,2]
[343994986,1733173831935,-500.0,8.219e-05,2]
[343994988,1733173831944,-360.03838115,8.219e-05,2]
[343994990,1733173831954,-250.0,8.219e-05,2]
[343994991,1733173831963,-8458.66,8.219e-05,2]
[343994995,1733173831973,-400.59,8.219e-05,2]
[343994997,1733173831983,-30692.72,8.219e-05,2]
[343994998,1733173831993,-1000.0,8.222e-05,2]
[343995001,1733173832002,-787.68,8.247e-05,2]
[343995003,1733173832012,-250.0,8.308e-05,2]
[343995005,1733173832022,-3392.4,8.33e-05,2]
[343995017,1733173832031,-192.95,8.376e-05,2]
[343995018,1733173832376,-787.68,8.384e-05,2]
[343995019,1733173832386,-787.68,8.521e-05,2]
[343995020,1733173832395,-787.68,8.658e-05,2]
[343995021,1733173832404,-400.59,8.676e-05,2]
[343995022,1733173832414,-150.0,8.761e-05,2]
[343995023,1733173832424,-255.0,8.788e-05,2]
[343995024,1733173832433,-787.68,8.795e-05,2]
[343995025,1733173832442,-250.0,8.905e-05,2]
[343995026,1733173832451,-787.68,8.932e-05,2]
[343995027,1733173832461,-732.69,9e-05,2]
[343995028,1733173832470,-732.69,9e-05,2]
[343995029,1733173832480,-732.69,9e-05,2]
[343995030,1733173832490,-732.69,9e-05,2]
[343995031,1733173832500,-732.69,9e-05,2]
[343995032,1733173832510,-732.69,9e-05,2]
[343995033,1733173832519,-732.69,9e-05,2]
[343995034,1733173832529,-732.69,9e-05,2]
[343995035,1733173832542,-732.69,9e-05,2]
[343995036,1733173832552,-732.69,9e-05,2]
[343995037,1733173832562,-732.69,9e-05,2]
[343995038,1733173832573,-787.68,9.069e-05,2]
[343995039,1733173832583,-400.59,9.132e-05,2]
[343995040,1733173832593,-787.68,9.206e-05,2]
[343995041,1733173832603,-732.69,9.24e-05,2]
[343995042,1733173832612,-1000.0,9.25e-05,2]
[343995043,1733173832622,-787.68,9.343e-05,2]
[343995044,1733173832632,-625.0,9.36e-05,2]
[343995045,1733173832642,-211.0,9.36e-05,2]
[343995046,1733173832651,-732.69,9.39e-05,2]
[343995047,1733173832661,-1200.0,9.4e-05,3]
[343995048,1733173832671,-5810.4565,9.4e-05,2]
[343995049,1733173832681,-18916.156,9.4e-05,2]
[343995050,1733173832691,-732.69,9.468e-05,2]
[343995051,1733173832702,-732.69,9.468e-05,2]
[343995052,1733173832712,-2547.03854519,9.478e-05,2]
[343995053,1733173832725,-398.8199826,9.478e-05,2]
[343995054,1733173832855,-1857.09192673,9.478e-05,2]
[343995055,1733173832887,-1112.32676389,9.478e-05,2]
[343995056,1733173837399,-732.69,9.468e-05,2]
[343995057,1733173837409,-684.52549702,9.478e-05,2]
[343995058,1733173837419,-833.38209103,9.478e-05,2]
[343995059,1733173837430,-919.19,9.478e-05,2]
[343995060,1733173837441,-3247.42790897,9.478e-05,2]
[343995061,1733173837451,-5000.0,9.478e-05,2]
[343995062,1733173837461,-5000.0,9.478e-05,2]
[343995063,1733173837470,-5000.0,9.478e-05,2]
[343995064,1733173837480,-787.68,9.48e-05,2]
[343995065,1733173837490,-732.69,9.497e-05,2]
[343995066,1733173837500,-2500.0,9.5e-05,3]
[343995067,1733173837510,-1164.0,9.507e-05,2]
[343995068,1733173837519,-732.69,9.526e-05,2]
[343995069,1733173837530,-10369.54,9.536e-05,2]
[343995070,1733173837542,-400.0,9.589e-05,2]
[343995071,1733173837552,-400.59,9.589e-05,2]
[343995072,1733173837562,-3800.0,9.6e-05,3]
[343995073,1733173837571,-732.69,9.606e-05,2]
[343995074,1733173837581,-500.0,9.616e-05,2]
[343995075,1733173837591,-787.68,9.617e-05,2]
[343995076,1733173837601,-493.09,9.659e-05,2]
[343995077,1733173837612,-732.69,9.66e-05,2]
[343995078,1733173837622,-433.0,9.667e-05,2]
[343995079,1733173837632,-2978.7,9.67e-05,2]
[343995080,1733173837642,-1441.43,9.67e-05,2]
[343995081,1733173837651,-1373.23,9.67e-05,2]
[343995082,1733173837661,-16739.67,9.67e-05,2]
[343995083,1733173837671,-2857.57,9.67e-05,2]
[343995084,1733173837681,-299.99,9.67e-05,2]
[343995085,1733173837691,-1305.89,9.67e-05,2]
[343995086,1733173837701,-499.99,9.67e-05,2]
[343995087,1733173837711,-1505.81,9.67e-05,2]
[343995088,1733173837721,-8653.88,9.67e-05,2]
[343995089,1733173837732,-1343.68,9.67e-05,2]
[343995090,1733173837742,-150.99,9.67e-05,2]
[343995091,1733173837752,-290.63,9.67e-05,2]
[343995092,1733173837763,-3463.67,9.67e-05,2]
[343995093,1733173837772,-20287.58380173,9.67e-05,2]
[343995101,1733173839218,-31471.19619827,9.67e-05,2]
[343995102,1733173839228,-1516.82,9.67e-05,2]
[343995103,1733173839238,-9999.99,9.67e-05,2]
[343995104,1733173839248,-999.99,9.67e-05,2]
[343995105,1733173839257,-6231.26063749,9.67e-05,2]
[343995106,1733173839270,-3768.72936251,9.67e-05,2]
[343995107,1733173839280,-805.76,9.67e-05,2]
[343995108,1733173839292,-3579.24,9.67e-05,2]
[343995109,1733173839302,-9999.99,9.67e-05,2]
[343995110,1733173839312,-1106.66,9.67e-05,2]
[343995111,1733173839322,-13114.77,9.67e-05,2]
[343995112,1733173839333,-475.93,9.67e-05,2]
[343995113,1733173839343,-391.18,9.67e-05,2]
[343995114,1733173839352,-150.99,9.67e-05,2]
[343995115,1733173839362,-1436.56,9.67e-05,2]
[343995116,1733173839372,-326.6,9.67e-05,2]
[343995117,1733173839381,-11802.78344299,9.67e-05,2]
[343995121,1733173841260,-489.54220837,9.67e-05,2]
[343995122,1733173841271,-254.1699997,9.67e-05,2]
[343995130,1733173842405,-11330.01902377,9.67e-05,2]
[343995131,1733173842417,-130745.91380689,9.67e-05,2]
[343995132,1733173842428,-12629.16309947,9.67e-05,2]
[343995141,1733173842506,-638.7251152,9.67e-05,2]
[343995143,1733173842518,-410.05431755,9.67e-05,2]
[343995145,1733173842529,-342.9,9.67e-05,2]
[343995146,1733173842564,-52030.54898606,9.67e-05,2]
[343995147,1733173842574,-189.99,9.67e-05,2]
[343995148,1733173842584,-500.0,9.673e-05,2]
[343995149,1733173842594,-14727.19417748,9.699e-05,2]
[343995150,1733173842606,-22894.42582252,9.699e-05,2]
[343995151,1733173842615,-5100.0,9.7e-05,3]
[343995152,1733173842625,-13310.69077387,9.7e-05,2]
[343995153,1733173842637,-1814.67410815,9.7e-05,2]
[343995154,1733173842648,-6288.85426201,9.7e-05,2]
[343995155,1733173842661,-3962.89334544,9.7e-05,2]
[343995156,1733173842685,-2530.4225301,9.7e-05,2]
[343995157,1733173842700,-312.97841108,9.7e-05,2]
[343995170,1733173845513,-678.8450025,9.7e-05,2]
[343995171,1733173845538,-507.42152562,9.669e-05,2]
[343995172,1733173845550,-2174.72247438,9.7e-05,2]
[343995173,1733173845566,-603.91161884,9.7e-05,2]
[343995174,1733173845578,-6030.17529031,9.7e-05,2]
[343995175,1733173845597,-5965.00026486,9.7e-05,2]
[343995206,1733173846304,-185225.34311846,9.7e-05,2]
[343995207,1733173846314,-1769820.922,9.7e-05,2]
[343995208,1733173846323,-2500.0,9.7e-05,2]
[343995209,1733173846333,-787.68,9.754e-05,2]
[343995210,1733173846343,-192.95,9.758e-05,2]
[343995211,1733173846352,-199.1183,9.8e-05,2]
[343995212,1733173846362,-4122.3093,9.8e-05,2]
[343995213,1733173846372,-245000.0,9.8e-05,2]
[343995214,1733173846382,-511.94,9.8e-05,2]
[343995215,1733173846391,-1000.0,9.8e-05,2]
[343995216,1733173846401,-13043.2203,9.8e-05,2]
[343995217,1733173846410,-6300.0,9.8e-05,3]
[343995218,1733173846419,-237.6501808,9.8e-05,2]
[343995219,1733173846428,-22011.0708,9.8e-05,2]
[343995220,1733173846438,-4562.3865,9.8e-05,2]
[343995221,1733173846447,-11713.3061,9.8e-05,2]
[343995222,1733173846456,-1480.7647,9.8e-05,2]
[343995223,1733173846466,-4146.7511,9.8e-05,2]
[343995224,1733173846475,-1600.0,9.863e-05,2]
[343995225,1733173846485,-2000.0,9.863e-05,2]
[343995226,1733173846494,-787.68,9.891e-05,2]
[343995227,1733173846504,-2000.0,9.899e-05,2]
[343995228,1733173846514,-500.0,9.9e-05,2]
[343995229,1733173846523,-24652.6265,9.9e-05,2]
[343995230,1733173846533,-4802.4925,9.9e-05,2]
[343995231,1733173846543,-798.2488,9.9e-05,2]
[343995232,1733173846555,-669816.9354,9.9e-05,2]
[343995233,1733173846564,-14921.8718,9.9e-05,2]
[343995234,1733173846574,-1279.8505,9.9e-05,2]
[343995235,1733173846583,-31704.2902,9.9e-05,2]
[343995236,1733173846592,-2832.3362,9.9e-05,2]
[343995237,1733173846602,-36960.5704,9.9e-05,2]
[343995238,1733173846612,-574.4813,9.9e-05,2]
[343995239,1733173846622,-9991.976,9.9e-05,2]
[343995240,1733173846633,-1100.8186,9.9e-05,2]
[343995241,1733173846643,-123213.0403,9.9e-05,2]
[343995242,1733173846652,-29735.7899,9.9e-05,2]
[343995243,1733173846662,-6349.4571,9.9e-05,2]
[343995244,1733173846672,-25575.4025,9.9e-05,2]
[343995245,1733173846682,-1000.0,9.9e-05,2]
[343995246,1733173846692,-1000.0,9.9e-05,2]
[343995247,1733173846702,-1000.0,9.9e-05,2]
[343995248,1733173846712,-1000.0,9.9e-05,2]
[343995249,1733173846721,-1000.0,9.9e-05,2]
[343995250,1733173846730,-1000.0,9.9e-05,2]
[343995251,1733173846740,-1000.0,9.9e-05,2]
[343995252,1733173846749,-1000.0,9.9e-05,2]
[343995253,1733173846759,-1000.0,9.9e-05,2]
[343995254,1733173846768,-1000.0,9.9e-05,2]
[343995255,1733173846777,-1000.0,9.9e-05,2]
[343995256,1733173846786,-1000.0,9.9e-05,2]
[343995257,1733173846795,-1000.0,9.9e-05,2]
[343995258,1733173846812,-1000.0,9.9e-05,2]
[343995259,1733173846821,-1000.0,9.9e-05,2]
[343995260,1733173846831,-1000.0,9.9e-05,2]
[343995261,1733173846841,-1000.0,9.9e-05,2]
[343995262,1733173846850,-1000.0,9.9e-05,2]
[343995263,1733173846862,-1000.0,9.9e-05,2]
[343995264,1733173846874,-1000.0,9.9e-05,2]
[343995265,1733173846883,-1000.0,9.9e-05,2]
[343995266,1733173846894,-1000.0,9.9e-05,2]
[343995267,1733173846904,-1000.0,9.9e-05,2]
[343995268,1733173846914,-1000.0,9.9e-05,2]
[343995269,1733173846923,-1000.0,9.9e-05,2]
[343995270,1733173846931,-1000.0,9.9e-05,2]
[343995271,1733173846940,-1000.0,9.9e-05,2]
[343995272,1733173846951,-1000.0,9.9e-05,2]
[343995273,1733173846960,-1000.0,9.9e-05,2]
[343995274,1733173846970,-1000.0,9.9e-05,2]
[343995275,1733173846980,-1000.0,9.9e-05,2]
[343995276,1733173846991,-1000.0,9.9e-05,2]
[343995277,1733173847001,-1000.0,9.9e-05,2]
[343995278,1733173847010,-1000.0,9.9e-05,2]
[343995279,1733173847020,-1000.0,9.9e-05,2]
[343995280,1733173847029,-1000.0,9.9e-05,2]
[343995281,1733173847039,-1000.0,9.9e-05,2]
[343995282,1733173847049,-1000.0,9.9e-05,2]
[343995283,1733173847058,-1000.0,9.9e-05,2]
[343995284,1733173847068,-1000.0,9.9e-05,2]
[343995285,1733173847078,-1000.0,9.9e-05,2]
[343995286,1733173847088,-1000.0,9.9e-05,2]
[343995287,1733173847098,-1000.0,9.9e-05,2]
[343995288,1733173847108,-1000.0,9.9e-05,2]
[343995289,1733173847117,-1000.0,9.9e-05,2]
[343995290,1733173847127,-1000.0,9.9e-05,2]
[343995291,1733173847137,-1000.0,9.9e-05,2]
[343995292,1733173847146,-1000.0,9.9e-05,2]
[343995293,1733173847155,-1000.0,9.9e-05,2]
[343995294,1733173847164,-1000.0,9.9e-05,2]
[343995295,1733173847174,-1000.0,9.9e-05,2]
[343995296,1733173847184,-1000.0,9.9e-05,2]
[343995297,1733173847192,-1000.0,9.9e-05,2]
[343995298,1733173847202,-1000.0,9.9e-05,2]
[343995299,1733173847211,-1000.0,9.9e-05,2]
[343995300,1733173847221,-1000.0,9.9e-05,2]
[343995301,1733173847231,-1000.0,9.9e-05,2]
[343995302,1733173847240,-1000.0,9.9e-05,2]
[343995303,1733173847250,-1000.0,9.9e-05,2]
[343995304,1733173847259,-1000.0,9.9e-05,2]
[343995305,1733173847269,-1000.0,9.9e-05,2]
[343995306,1733173847279,-1000.0,9.9e-05,2]
[343995307,1733173847288,-1000.0,9.9e-05,2]
[343995308,1733173847299,-1000.0,9.9e-05,2]
[343995309,1733173847309,-1000.0,9.9e-05,2]
[343995310,1733173847318,-1000.0,9.9e-05,2]
[343995311,1733173847328,-1000.0,9.9e-05,2]
[343995312,1733173847338,-1000.0,9.9e-05,2]
[343995313,1733173847347,-1000.0,9.9e-05,2]
[343995314,1733173847356,-1000.0,9.9e-05,2]
[343995315,1733173847365,-1000.0,9.9e-05,2]
[343995316,1733173847375,-1000.0,9.9e-05,2]
[343995317,1733173847383,-1000.0,9.9e-05,2]
[343995318,1733173847393,-1000.0,9.9e-05,2]
[343995319,1733173847403,-1000.0,9.9e-05,2]
[343995320,1733173847412,-1000.0,9.9e-05,2]
[343995321,1733173847421,-1000.0,9.9e-05,2]
[343995322,1733173847431,-1000.0,9.9e-05,2]
[343995323,1733173847440,-1000.0,9.9e-05,2]
[343995324,1733173847450,-1000.0,9.9e-05,2]
[343995325,1733173847459,-1000.0,9.9e-05,2]
[343995326,1733173847468,-1000.0,9.9e-05,2]
[343995327,1733173847478,-1000.0,9.9e-05,2]
[343995328,1733173847487,-1000.0,9.9e-05,2]
[343995329,1733173847497,-1000.0,9.9e-05,2]
[343995330,1733173847506,-1000.0,9.9e-05,2]
[343995331,1733173847515,-1000.0,9.9e-05,2]
[343995332,1733173847525,-1000.0,9.9e-05,2]
[343995333,1733173847534,-1000.0,9.9e-05,2]
[343995334,1733173847544,-1000.0,9.9e-05,2]
[343995335,1733173847555,-1000.0,9.9e-05,2]
[343995336,1733173847564,-1000.0,9.9e-05,2]
[343995337,1733173847574,-1000.0,9.9e-05,2]
[343995338,1733173847583,-1000.0,9.9e-05,2]
[343995339,1733173847593,-1000.0,9.9e-05,2]
[343995340,1733173847602,-1000.0,9.9e-05,2]
[343995341,1733173847612,-1000.0,9.9e-05,2]
[343995342,1733173847621,-1000.0,9.9e-05,2]
[343995343,1733173847631,-1000.0,9.9e-05,2]
[343995344,1733173847640,-355.0,9.9e-05,2]
[343995345,1733173847649,-1200.0,9.9e-05,3]
[343995346,1733173847658,-4691.34975946,9.9e-05,2]
[343995347,1733173847670,-72521.88600442,9.9e-05,2]
[343995348,1733173847680,-10829.58517243,9.91e-05,2]
[343995349,1733173847689,-500.0,9.92e-05,2]
[343995350,1733173847699,-485.99768152,9.921e-05,2]
[343995351,1733173847708,-485.99768152,9.926e-05,2]
[343995352,1733173847718,-485.99768152,9.932e-05,2]
[343995353,1733173847727,-485.99768152,9.937e-05,2]
[343995354,1733173847736,-485.99768152,9.942e-05,2]
[343995355,1733173847745,-485.99768152,9.947e-05,2]
[343995356,1733173847755,-485.99768152,9.953e-05,2]
[343995357,1733173847765,-485.99768152,9.958e-05,2]
[343995358,1733173847775,-485.99768152,9.963e-05,2]
[343995359,1733173847785,-485.99768152,9.968e-05,2]
[343995360,1733173847795,-485.99768152,9.974e-05,2]
[343995361,1733173847805,-485.99768152,9.979e-05,2]
[343995362,1733173847815,-485.99768152,9.984e-05,2]
[343995363,1733173847824,-485.99768152,9.989e-05,2]
[343995364,1733173847834,-7711.1470789,9.992e-05,2]
[343995365,1733173847851,-18091.4661238,9.992e-05,2]
[343995366,1733173847860,-485.99768152,9.995e-05,2]
[343995367,1733173847869,-150.0,9.998e-05,2]
[343995368,1733173847879,-150.0,9.998e-05,2]
[343995369,1733173847889,-150.0,9.998e-05,2]
[343995370,1733173847898,-150.0,9.998e-05,2]
[343995371,1733173848182,-150.0,9.998e-05,2]
[343995372,1733173848192,-150.0,9.998e-05,2]
[343995373,1733173848201,-150.0,9.998e-05,2]
[343995374,1733173848211,-150.0,9.998e-05,2]
[343995375,1733173848220,-150.0,9.998e-05,2]
[343995376,1733173848230,-150.0,9.998e-05,2]
[343995377,1733173848239,-150.0,9.998e-05,2]
[343995378,1733173848248,-150.0,9.998e-05,2]
[343995379,1733173848258,-150.0,9.999e-05,2]
[343995380,1733173848268,-50141.88768162,9.999e-05,2]
[343995381,1733173848277,-2000.0,9.999e-05,2]
[343995382,1733173848287,-2000.0,9.999e-05,2]
[343995383,1733173848298,-2000.0,9.999e-05,2]
[343995384,1733173848308,-2000.0,9.999e-05,2]
[343995385,1733173848317,-2000.0,9.999e-05,2]
[343995386,1733173848329,-2000.0,9.999e-05,2]
[343995387,1733173848339,-2000.0,9.999e-05,2]
[343995388,1733173848348,-150.92218949,9.999e-05,2]
[343995389,1733173848358,-12083.96807424,9.999e-05,2]
[343995390,1733173848367,-340.42058549,0.0001,2]
[343995391,1733173848376,-340.42058549,0.0001,2]
[343995392,1733173848386,-340.42058549,0.0001,2]
[343995393,1733173848396,-74087.82619443,0.0001,2]
[343995394,1733173848406,-74087.82619438,0.0001,2]
[343995395,1733173848416,-74087.82619438,0.0001,2]
[343995396,1733173848426,-6359544.60277392,0.0001,2]
[343995397,1733173848435,-173002.25291018,0.0001,2]
[343995398,1733173848445,-2311991.29505553,0.0001,2]
[343995399,1733173848454,-1000.0,0.0001,2]
[343995400,1733173848464,-1000.0,0.0001,2]
[343995401,1733173848474,-1000.0,0.0001,2]
[343995402,1733173848484,-1000.0,0.0001,2]
[343995403,1733173848495,-1000.0,0.0001,2]
[343995404,1733173848506,-1000.0,0.0001,2]
[343995405,1733173848517,-1000.0,0.0001,2]
[343995406,1733173848526,-1000.0,0.0001,2]
[343995407,1733173848536,-1000.0,0.0001,2]
[343995408,1733173848548,-202.2,0.0001,2]
[343995409,1733173848558,-202.2,0.0001,2]
[343995410,1733173848568,-2933.5006055,0.0001,2]
[343995411,1733173848578,-575.56690706,0.0001,2]
[343995412,1733173848588,-1000.0,0.0001,2]
[343995413,1733173848598,-150.0,0.0001,2]
[343995414,1733173848607,-1000.0,0.0001,2]
[343995415,1733173848617,-1000.0,0.0001,2]
[343995416,1733173848627,-150.76883907,0.0001,2]
[343995417,1733173848637,-1442962.9858431,0.0001,2]
[343995418,1733173848646,-202.2,0.0001,2]
[343995419,1733173848656,-320.772607,0.0001,2]
[343995420,1733173848665,-320.772607,0.0001,2]
[343995421,1733173848675,-320.772607,0.0001,2]
[343995422,1733173848685,-320.772607,0.0001,2]
[343995423,1733173848695,-320.772607,0.0001,2]
[343995424,1733173848705,-320.772607,0.0001,2]
[343995425,1733173848715,-320.772607,0.0001,2]
[343995426,1733173848724,-320.772607,0.0001,2]
[343995427,1733173848734,-320.772607,0.0001,2]
[343995428,1733173848744,-320.772607,0.0001,2]
[343995429,1733173848755,-320.772607,0.0001,2]
[343995430,1733173848765,-320.772607,0.0001,2]
[343995431,1733173848776,-320.772607,0.0001,2]
[343995432,1733173848786,-320.772607,0.0001,2]
[343995433,1733173848800,-320.772607,0.0001,2]
[343995434,1733173848812,-320.772602,0.0001,2]
[343995435,1733173848823,-507.789916,0.0001,2]
[343995436,1733173848833,-507.789916,0.0001,2]
[343995437,1733173848846,-507.789916,0.0001,2]
[343995438,1733173848857,-507.789916,0.0001,2]
[343995439,1733173848868,-507.789916,0.0001,2]
[343995440,1733173848881,-507.789916,0.0001,2]
[343995441,1733173848893,-507.789916,0.0001,2]
[343995442,1733173848903,-507.789916,0.0001,2]
[343995443,1733173848915,-507.789916,0.0001,2]
[343995444,1733173848926,-507.789916,0.0001,2]
[343995445,1733173848936,-507.789916,0.0001,2]
[343995446,1733173848946,-507.789916,0.0001,2]
[343995447,1733173848957,-507.789916,0.0001,2]
[343995448,1733173848968,-507.789916,0.0001,2]
[343995449,1733173848978,-507.789916,0.0001,2]
[343995450,1733173848988,-507.789916,0.0001,2]
[343995451,1733173848998,-507.789916,0.0001,2]
[343995452,1733173849008,-507.789916,0.0001,2]
[343995453,1733173849018,-507.789916,0.0001,2]
[343995454,1733173849028,-507.789923,0.0001,2]
[343995455,1733173849038,-150.0,0.0001,2]
[343995456,1733173849048,-150.0,0.0001,2]
[343995457,1733173849057,-150.0,0.0001,2]
[343995458,1733173849067,-150.0,0.0001,2]
[343995459,1733173849077,-2000.0,0.0001,2]
[343995460,1733173849087,-200.0,0.0001,2]
[343995461,1733173849097,-500.0,0.0001,2]
[343995462,1733173849106,-222.83633526,0.0001,2]
[343995463,1733173849116,-625.0,0.0001,2]
[343995464,1733173849126,-625.0,0.0001,2]
[343995465,1733173849137,-625.0,0.0001,2]
[343995466,1733173849147,-625.0,0.0001,2]
[343995467,1733173849157,-625.0,0.0001,2]
[343995468,1733173849168,-625.0,0.0001,2]
[343995469,1733173849178,-625.0,0.0001,2]
[343995470,1733173849187,-625.0,0.0001,2]
[343995471,1733173849198,-625.0,0.0001,2]
[343995472,1733173849208,-625.0,0.0001,2]
[343995473,1733173849218,-625.0,0.0001,2]
[343995474,1733173849228,-625.0,0.0001,2]
[343995475,1733173849239,-625.0,0.0001,2]
[343995476,1733173849248,-625.0,0.0001,2]
[343995477,1733173849258,-625.0,0.0001,2]